fUST/lending_fUST_20240120
["ID","MTS","AMOUNT","RATE_DAILY","PERIOD"]
[312285746,1705741840385,-284.838519,0.0003,6]
[312285747,1705741840394,-14776.12936598,0.0003,2]
[312285748,1705741840408,-10202.84952288,0.0003,2]
[312285749,1705741840420,-792.62963649,0.0003,2]
[312285750,1705741840433,-2918.40663585,0.0003,2]
[312285820,1705741841485,-678.35754423,0.0002,2]
[312285822,1705741841494,-6376.74,0.00022211,3]
[312285824,1705741841503,-1705.41484855,0.00029,2]
[312286031,1705741843507,-191.62163445,0.00029,2]
[312286033,1705741843518,-163.62836555,0.00029315,2]
[312286039,1705741843566,-35.47068995,0.00029315,2]
[312286041,1705741843576,-153.0,0.00029315,2]
[312286043,1705741843585,-1897.036483,0.0002979,2]
[312286045,1705741843594,-1267.36351047,0.0003,2]
[312286047,1705741843603,-3887.11251087,0.0003,2]
[312287303,1705742748118,-260.66256875,0.00019725,7]
[312287304,1705742748141,-154.69061876,0.00019726,3]
[312287305,1705742748162,-1370.90874354,0.00019727,2]
[312287306,1705742748183,-834.7768658,0.00019842,2]
[312287307,1705742748204,-154.69061876,0.0002,2]
[312287308,1705742748224,-128.08309695,0.0002,2]
[312287311,1705742982297,-868.40029005,0.00043854,120]
[312287312,1705742982319,-631.83591668,0.00043854,120]
[312287313,1705742982342,-503.62849602,0.00043854,120]
[312287314,1705742982364,-557.84162127,0.00043854,120]
[312287315,1705742982386,-439.24586345,0.00043854,120]
[312287316,1705742982408,-660.10947618,0.00043854,30]
[312287317,1705742982430,-816.88373928,0.00043854,120]
[312287318,1705742982453,-953.30281292,0.00043854,120]
[312287319,1705742982476,-1140.87952069,0.00043854,30]
[312287320,1705742982498,-202.22329746,0.00043854,30]
[312287321,1705742982519,-683.75215526,0.00043854,120]
[312287322,1705742982542,-522.41564485,0.00043854,120]
[312287323,1705742982564,-313.7802318,0.00043854,120]
[312287324,1705742982585,-150.93245168,0.00043854,30]
[312287325,1705742982607,-549.57304973,0.00043854,30]
[312287326,1705742982630,-500.0,0.00043854,120]
[312287327,1705742982653,-3007.63590738,0.00043854,30]
[312287328,1705742982675,-14701.22862613,0.00043854,60]
[312287329,1705742982700,-146106.14536895,0.00043854,30]
[312287330,1705742982723,-2037.79735663,0.00043854,120]
[312287331,1705742982746,-1775.34201015,0.00043854,120]
[312287332,1705742982769,-1292.38924377,0.00043854,60]
[312287333,1705742982791,-200.0,0.00043854,30]
[312287334,1705742982814,-1442.9,0.00043854,120]
[312287335,1705742982838,-2422.0,0.00043854,31]
[312287336,1705742983000,-2422.0,0.00043854,32]
[312287337,1705742983026,-200.862936,0.00043854,30]
[312287339,1705742988088,-400000.0,0.0003,30]
[312287340,1705742992602,-13371.46421997,0.0003,30]
[312287341,1705742992625,-227.0,0.00030671,30]
[312287342,1705742992648,-227.0,0.00030681,30]
[312287343,1705742992671,-227.0,0.00030691,30]
[312287344,1705742992693,-398.0,0.00030712,30]
[312287345,1705742992716,-398.0,0.00030722,30]
[312287346,1705742992738,-398.0,0.00030732,30]
[312287347,1705742992760,-176.1,0.00030989,30]
[312287348,1705742992785,-500.0,0.000326,30]
[312287349,1705742992894,-227.0,0.0003387,30]
[312287350,1705742992918,-398.0,0.0003388,30]
[312287351,1705742992943,-227.0,0.0003388,30]
[312287352,1705742992967,-398.0,0.0003389,30]
[312287353,1705742992989,-227.0,0.0003389,30]
[312287354,1705742993012,-398.0,0.000339,30]
[312287355,1705742993236,-364.73898,0.00035616,120]
[312287356,1705742993266,-227.0,0.0003598,30]
[312287357,1705742993288,-227.0,0.0003599,30]
[312287358,1705742993319,-398.0,0.0003638,30]
[312287359,1705742993343,-398.0,0.0003639,30]
[312287360,1705742993386,-150.0,0.00037,30]
[312287361,1705742993410,-150.0,0.000372,30]
[312287362,1705742993439,-150.0,0.000374,30]
[312287363,1705742993468,-150.0,0.000376,30]
[312287364,1705742993492,-150.0,0.000378,30]
[312287365,1705742993522,-150.0,0.00038,30]
[312287366,1705742993552,-150.0,0.000382,30]
[312287367,1705742993580,-150.0,0.000384,30]
[312287368,1705742993602,-150.0,0.000386,30]
[312287369,1705742993629,-150.0,0.000388,30]
[312287370,1705742993657,-200.0,0.00038973,30]
[312287371,1705742993680,-200.0,0.00038973,30]
[312287372,1705742993703,-200.0,0.00038973,30]
[312287373,1705742993727,-200.0,0.00038973,30]
[312287374,1705742993750,-275.0,0.00038973,30]
[312287375,1705742993773,-150.0,0.00039,30]
[312287376,1705742993800,-150.0,0.000392,30]
[312287377,1705742993823,-3519.14,0.000393,60]
[312287378,1705742993845,-150.0,0.000394,30]
[312287379,1705742993868,-150.0,0.000396,30]
[312287380,1705742993890,-245.17457541,0.000396,30]
[312287381,1705742993913,-150.0,0.000398,30]
[312287382,1705742993936,-150.0,0.0004,30]
[312287383,1705742993958,-793.23143319,0.0004,30]
[312287384,1705742993981,-994.26761857,0.0004,60]
[312287385,1705742994003,-7745.3223181,0.0004,30]
[312287386,1705742994025,-14877.27586429,0.0004,120]
[312287387,1705742994047,-1662.94216016,0.0004,60]
[312287388,1705742994070,-1507.38935824,0.0004,30]
[312287389,1705742994092,-452.83356796,0.0004,120]
[312287390,1705742994115,-1000.0,0.0004,30]
[312287391,1705742994139,-2000.0,0.0004,32]
[312287392,1705742994161,-600.0,0.0004,30]
[312287393,1705742994183,-2016.79,0.0004,32]
[312287394,1705742994206,-3979.974328,0.0004001,32]
[312287395,1705742994230,-154.12939898,0.0004002,30]
[312287396,1705742994252,-154.90570146,0.0004015,30]
[312287397,1705742994275,-150.0,0.000402,30]
[312287398,1705742994297,-166.81079493,0.00040217,30]
[312287399,1705742994319,-154.90570146,0.00040248,30]
[312287400,1705742994343,-154.90570146,0.00040364,30]
[312287401,1705742994365,-150.0,0.000404,30]
[312287402,1705742994388,-159.57600549,0.00040464,30]
[312287403,1705742994411,-154.90570146,0.00040537,30]
[312287404,1705742994434,-159.57600549,0.0004055,30]
[312287405,1705742994458,-154.90570146,0.00040565,30]
[312287406,1705742994480,-166.81079493,0.00040591,30]
[312287407,1705742994503,-150.0,0.000406,30]
[312287408,1705742994525,-309.82031713,0.000406,30]
[312287409,1705742994548,-154.90570146,0.00040605,30]
[312287410,1705742994571,-154.12939898,0.00040659,30]
[312287411,1705742994593,-159.57600549,0.00040711,30]
[312287412,1705742994616,-150.0,0.000408,30]
[312287413,1705742994638,-300.0,0.000408,50]
[312287414,1705742994662,-154.90570146,0.00040891,30]
[312287415,1705742994684,-166.81079495,0.0004091,30]
[312287416,1705742994707,-159.57600549,0.00040935,30]
[312287417,1705742994730,-1422.56140325,0.00040978,37]
[312287418,1705742994754,-159.57600549,0.00040994,30]
[312287419,1705742994777,-150.0,0.00041,30]
[312287420,1705742994799,-156.11253268,0.00041,90]
[312287421,1705742994821,-300.0,0.00041,60]
[312287422,1705742994846,-1000.0,0.00041,30]
[312287423,1705742994868,-600.0,0.00041014,30]
[312287424,1705742994891,-154.90570146,0.00041023,30]
[312287425,1705742994914,-154.12939898,0.00041056,30]
[312287426,1705742994936,-159.57600549,0.00041068,30]
[312287427,1705742994960,-154.90570146,0.00041128,30]
[312287428,1705742994984,-150.0,0.000412,30]
[312287429,1705742995008,-154.90570146,0.00041254,30]
[312287430,1705742995035,-159.57600549,0.00041293,30]
[312287431,1705742995170,-159.57600549,0.00041301,30]
[312287432,1705742995195,-150.0,0.000414,30]
[312287433,1705742995217,-159.57600549,0.00041419,30]
[312287434,1705742995241,-159.57600549,0.00041421,30]
[312287435,1705742995263,-154.90570146,0.00041539,30]
[312287436,1705742995287,-364.73898,0.00041553,120]
[312287437,1705742995311,-154.90570146,0.00041577,30]
[312287438,1705742995334,-150.0,0.000416,30]
[312287439,1705742995356,-154.90570146,0.00041607,30]
[312287440,1705742995378,-154.90570146,0.00041631,30]
[312287441,1705742995401,-235.9,0.0004168,30]
[312287442,1705742995424,-227.0,0.0004169,30]
[312287443,1705742995447,-154.12939898,0.00041725,30]
[312287444,1705742995473,-150.0,0.000418,30]
[312287445,1705742995497,-4588.24917634,0.000418,30]
[312287446,1705742995521,-154.12939898,0.0004185,30]
[312287447,1705742995546,-154.90570146,0.00041962,30]
[312287448,1705742995569,-407.1,0.0004198,30]
[312287449,1705742995595,-398.0,0.0004199,30]
[312287450,1705742995617,-150.0,0.00042,30]
[312287451,1705742995640,-1062.62617422,0.00042,120]
[312287452,1705742995665,-1028.74324711,0.00042,45]
[312287453,1705742995689,-2287.59087747,0.00042,120]
[312287454,1705742995714,-1000.0,0.00042,30]
[312287455,1705742995737,-528.85455543,0.00042,30]
[312287456,1705742995760,-1000.0,0.00042,30]
[312287457,1705742995783,-600.0,0.00042028,30]
[312287458,1705742995807,-154.90570146,0.00042088,30]
[312287459,1705742995835,-500.0,0.00042095,30]
[312287460,1705742995865,-500.0,0.00042095,30]
[312287461,1705742995889,-286.31061386,0.00042095,30]
[312287462,1705742995914,-287.50226319,0.00042095,30]
[312287463,1705742995938,-500.0,0.00042095,30]
[312287464,1705742995963,-500.0,0.00042095,30]
[312287465,1705742995988,-293.51105726,0.00042095,30]
[312287466,1705742996011,-500.0,0.00042095,30]
[312287467,1705742996036,-420.06199459,0.00042095,30]
[312287468,1705742996061,-500.0,0.00042095,30]
[312287469,1705742996087,-500.0,0.00042095,30]
[312287470,1705742996110,-500.0,0.00042095,30]
[312287471,1705742996135,-500.0,0.00042095,30]
[312287472,1705742996159,-163.37466306,0.00042095,30]
[312287473,1705742996184,-154.90570146,0.00042152,30]
[312287474,1705742996221,-154.90570146,0.00042163,30]
[312287475,1705742996251,-154.90570146,0.00042196,30]
[312287476,1705742996285,-150.0,0.000422,30]
[312287477,1705742996318,-304490.24995817,0.00042223,60]
[312287478,1705743001089,-22359.23002852,0.00042223,60]
[312287479,1705743001113,-159.57600555,0.00042261,30]
[312287480,1705743001135,-154.12939898,0.0004231,30]
[312287481,1705743001160,-154.90570146,0.00042348,30]
[312287482,1705743001183,-150.0,0.000424,30]
[312287483,1705743001206,-150.0,0.000426,30]
[312287484,1705743001229,-150.0,0.000426,30]
[312287485,1705743001252,-258.55356805,0.00042633,30]
[312287486,1705743001276,-154.12939901,0.00042634,30]
[312287487,1705743001299,-154.90570163,0.00042708,30]
[312287488,1705743001323,-150.0,0.000428,30]
[312287489,1705743001349,-200.0,0.0004287,30]
[312287490,1705743001376,-200.0,0.0004287,30]
[312287491,1705743001401,-200.0,0.0004287,30]
[312287492,1705743001425,-200.0,0.0004287,30]
[312287493,1705743001453,-200.0,0.0004287,30]
[312287494,1705743001480,-200.0,0.0004287,30]
[312287495,1705743001504,-305.0,0.0004287,30]
[312287496,1705743001528,-150.0,0.00043,30]
[312287497,1705743001552,-1000.0,0.00043,30]
[312287498,1705743001574,-333.0,0.00043,60]
[312287499,1705743001599,-600.0,0.00043042,30]
[312287500,1705743001621,-2000.0,0.00043178,30]
[312287501,1705743001645,-1205.58882236,0.0004319,30]
[312287502,1705743001669,-150.0,0.000432,30]
[312287503,1705743001693,-150.0,0.000434,30]
[312287504,1705743001716,-269.31268,0.0004347,120]
[312287505,1705743001739,-520.0,0.000435,120]
[312287506,1705743001761,-150.0,0.000436,30]
[312287507,1705743001783,-156.0,0.00043659,90]
[312287508,1705743001806,-150.0,0.000438,30]
[312287509,1705743001830,-500.0,0.00043835,31]
[312287510,1705743001863,-3266.0,0.00043863,45]
[312287511,1705743001886,-2500.0,0.00043863,30]
[312287512,1705743001909,-150.0,0.00044,30]
[312287513,1705743001934,-1000.0,0.00044,44]
[312287514,1705743001957,-1000.0,0.00044,30]
[312287515,1705743001981,-165.0,0.00044,90]
[312287516,1705743002004,-703.22404676,0.00044056,30]
[312287517,1705743002029,-500.0,0.00044109,31]
[312287518,1705743002053,-150.0,0.00044142,120]
[312287519,1705743002078,-2000.0,0.00044162,30]
[312287520,1705743002101,-2000.0,0.00044162,30]
[312287521,1705743002124,-150.0,0.000442,30]
[312287522,1705743002147,-500.0,0.00044383,31]
[312287523,1705743002170,-150.0,0.000444,30]
[312287524,1705743002192,-7662.03695297,0.00044444,120]
[312287525,1705743002214,-184.79798286,0.000445,30]
[312287526,1705743002237,-150.0,0.000446,30]
[312287527,1705743002260,-500.0,0.00044657,31]
[312287528,1705743002284,-150.0,0.000448,30]
[312287529,1705743002307,-160.70174249,0.000448,120]
[312287530,1705743002333,-1085.99132363,0.000448,60]
[312287531,1705743002357,-442.518655,0.000449,120]
[312287532,1705743002379,-3964.36567916,0.000449,30]
[312287533,1705743002404,-1000.0,0.000449,120]
[312287534,1705743002429,-500.0,0.00044931,31]
[312287535,1705743002451,-1687.12893118,0.0004498,30]
[312287536,1705743002474,-1483.06942405,0.00044989,39]
[312287537,1705743002497,-750.0,0.00044999,120]
[312287538,1705743002522,-150.0,0.00045,30]
[312287539,1705743002551,-6402.56698846,0.00045,30]
[312287540,1705743002576,-1000.0,0.00045,45]
[312287541,1705743002600,-1609.54766649,0.00045,60]
[312287542,1705743002623,-1003.38031564,0.00045,120]
[312287543,1705743002646,-5000.0,0.00045,30]
[312287544,1705743002670,-1000.0,0.00045,30]
[312287545,1705743002692,-1000.0,0.00045,30]
[312287546,1705743002715,-1000.0,0.00045,30]
[312287547,1705743002738,-2127.0,0.00045,120]
[312287548,1705743002760,-366.0,0.00045,30]
[312287549,1705743002784,-396.75552863,0.00045,120]
[312287550,1705743002809,-500.0,0.00045,120]
[312287551,1705743002835,-210.0309973,0.00045,120]
[312287552,1705743002862,-500.0,0.00045,120]
[312287553,1705743002887,-500.0,0.00045,120]
[312287554,1705743002911,-249.32679449,0.00045,120]
[312287555,1705743002937,-581.68733153,0.00045,120]
[312287556,1705743002962,-150.0,0.000452,30]
[312287557,1705743002986,-452.70696584,0.00045205,31]
[312287558,1705743003010,-150.0,0.000454,30]
[312287559,1705743003035,-308861.83136796,0.000455,120]
[312287561,1705743022121,-1817.14165864,0.0004,30]
[312287562,1705743022154,-398182.85834136,0.000455,120]
[312287563,1705743025324,-292955.31029068,0.000455,120]
[312287564,1705743025350,-86889.12916001,0.000457,35]
[312287565,1705743025374,-156.0,0.00045842,90]
[312287566,1705743025397,-1000.0,0.00046,46]
[312287567,1705743025420,-18999.56054931,0.00046,120]
[312287568,1705743028094,-150.0,0.00037,30]
[312287569,1705743028119,-150.0,0.000372,30]
[312287570,1705743028192,-417.16966305,0.00045,30]
[312287571,1705743028216,-399282.83033695,0.00046,120]
[312287572,1705743031282,-150.0,0.000374,30]
[312287573,1705743031311,-150.0,0.000376,30]
[312287574,1705743031335,-150.0,0.000378,30]
[312287575,1705743031399,-399550.0,0.00046,120]
[312287601,1705743032624,-586.08910309,0.000189,2]
[312287603,1705743032634,-155.17563815,0.0002,2]
[312287605,1705743032643,-154.70605849,0.0002,2]
[312287606,1705743032652,-678.35754423,0.0002,2]
[312287608,1705743032661,-849.96832798,0.00020731,2]
[312287610,1705743032671,-24900.0,0.00020732,2]
[312287612,1705743032681,-263.989752,0.00020809,2]
[312287615,1705743032691,-327.38324213,0.00021,2]
[312287618,1705743032700,-154.70605849,0.00021912,4]
[312287621,1705743032709,-1764.32790583,0.00021913,2]
[312287624,1705743032718,-1197.48170656,0.00021915,2]
[312287627,1705743032727,-166.666666,0.00021918,2]
[312287630,1705743032736,-170.093981,0.00021968,2]
[312287633,1705743032745,-293.17583958,0.00022,4]
[312287636,1705743032754,-3966.85623058,0.00022,2]
[312287639,1705743032764,-425.80364021,0.00022,2]
[312287642,1705743032773,-156.78822438,0.00022346,2]
[312287645,1705743032784,-166.666666,0.00022431,2]
[312287648,1705743032793,-166.666666,0.00022944,2]
[312287650,1705743032802,-1570.89243892,0.00023,2]
[312287653,1705743032812,-260.66256875,0.00023455,7]
[312287656,1705743032821,-166.666666,0.00023456,2]
[312287659,1705743032830,-586.08910309,0.000239,2]
[312287662,1705743032839,-166.666666,0.00023969,2]
[312287665,1705743032849,-4012.5594856,0.00024,2]
[312287668,1705743032860,-200.0,0.00024199,7]
[312287671,1705743032872,-166.666666,0.00024482,2]
[312287674,1705743032882,-583.04756545,0.00024571,2]
[312287676,1705743032891,-4721.06450288,0.00025,2]
[312287678,1705743032901,-1045.90652664,0.00025433,2]
[312287679,1705743032910,-275.19554589,0.00025434,2]
[312287681,1705743032919,-170.066696,0.00026411,2]
[312287682,1705743032928,-280.0,0.00026619,15]
[312287683,1705743032937,-156.78822437,0.00026628,3]
[312287684,1705743032948,-17885.40796253,0.00027977,2]
[312287685,1705743032957,-410.41281499,0.00028,2]
[312287686,1705743032966,-290.16476431,0.00028,2]
[312287687,1705743032975,-3814.87,0.00028231,3]
[312287688,1705743032984,-4577.85,0.00028241,3]
[312287689,1705743032992,-905.8895569,0.00028251,3]
[312287690,1705743033004,-3845.67483293,0.00028251,3]
[312287758,1705743033823,-150.0,0.00038,30]
[312287762,1705743033853,-150.0,0.000382,30]
[312287767,1705743033907,-182167.60911374,0.00046,120]
[312287768,1705743033930,-424.21961229,0.00046108,120]
[312287769,1705743033954,-217108.17127397,0.000465,120]
[312287770,1705743036510,-182.36949,0.00035616,120]
[312287771,1705743036594,-150.0,0.000384,30]
[312287772,1705743036621,-150.0,0.000386,30]
[312287773,1705743036659,-245.17457541,0.000396,30]
[312287774,1705743036690,-182.36949,0.00041553,120]
[312287775,1705743036722,-399090.08644459,0.000465,120]
[312287818,1705743038782,-154.70605849,0.0002073,2]
[312287820,1705743038792,-470.52459336,0.0002826,2]
[312287822,1705743038801,-874.04705685,0.00028261,2]
[312287824,1705743038810,-272.47884373,0.00028261,2]
[312287826,1705743038820,-8431.09297045,0.00028262,5]
[312287828,1705743038831,-31381.55087033,0.00028262,5]
[312287885,1705743042002,-999.33401094,0.00028262,5]
[312287886,1705743042035,-9188.02214828,0.00028262,5]
[312287887,1705743042044,-199.0990555,0.00028493,2]
[312287888,1705743042054,-199.0990555,0.00028493,2]
[312287889,1705743042064,-309.6260754,0.00028493,2]
[312287890,1705743042074,-199.0990555,0.00028493,2]
[312287891,1705743042083,-199.0990555,0.00028493,2]
[312287892,1705743042092,-199.0990555,0.00028493,2]
[312287895,1705743042102,-199.0990555,0.00028493,2]
[312287897,1705743042111,-199.0990555,0.00028493,2]
[312287898,1705743042120,-199.0990555,0.00028493,2]
[312287901,1705743042129,-268.94489757,0.000289,2]
[312287904,1705743042141,-317.14420552,0.000289,2]
[312287906,1705743042151,-154.69061876,0.00029,2]
[312287908,1705743042160,-1879.95128807,0.00029,2]
[312287910,1705743042169,-153.0,0.00029178,2]
[312287912,1705743042178,-153.0,0.00029178,2]
[312287914,1705743042187,-391.0,0.00029281,15]
[312287916,1705743042196,-199.0990555,0.00029315,2]
[312287917,1705743042205,-199.0990555,0.00029315,2]
[312287918,1705743042215,-199.0990555,0.00029315,2]
[312287919,1705743042224,-166.88,0.00029899,2]
[312287920,1705743042234,-166.88,0.00029899,2]
[312287921,1705743042244,-166.88,0.00029899,2]
[312287922,1705743042254,-166.88,0.00029899,2]
[312287923,1705743042263,-500.0,0.00029899,2]
[312287924,1705743042272,-65.13148428,0.00029899,2]
[312287925,1705743042285,-434.86851572,0.00029899,2]
[312287926,1705743042294,-500.0,0.00029899,2]
[312287927,1705743042303,-500.0,0.00029899,2]
[312287928,1705743042312,-402.05937503,0.00029899,2]
[312287929,1705743042321,-396.98625357,0.00029899,2]
[312287930,1705743042331,-500.0,0.00029899,2]
[312287931,1705743042340,-500.0,0.00029899,2]
[312287932,1705743042350,-215.77653465,0.00029899,2]
[312287933,1705743042360,-500.0,0.00029899,2]
[312287934,1705743042369,-218.75565798,0.00029899,2]
[312287935,1705743042378,-500.0,0.00029899,2]
[312287936,1705743042387,-500.0,0.00029899,2]
[312287937,1705743042396,-500.0,0.00029899,2]
[312287938,1705743042406,-500.0,0.00029899,2]
[312287939,1705743042415,-500.0,0.00029899,2]
[312287940,1705743042424,-210.07471074,0.00029899,2]
[312287941,1705743042436,-289.92528926,0.00029899,2]
[312287942,1705743042445,-500.0,0.00029899,2]
[312287943,1705743042454,-340.12398919,0.00029899,2]
[312287944,1705743042463,-500.0,0.00029899,2]
[312287945,1705743042473,-587.02211452,0.00029899,2]
[312287946,1705743042482,-500.0,0.00029899,2]
[312287947,1705743042491,-500.0,0.00029899,2]
[312287948,1705743042500,-500.0,0.00029899,2]
[312287949,1705743042510,-497.30717794,0.00029899,2]
[312287950,1705743042519,-500.0,0.00029899,2]
[312287951,1705743042528,-500.0,0.00029899,2]
[312287952,1705743042538,-285.53176475,0.00029899,2]
[312287953,1705743042549,-41.21756138,0.00029899,2]
[312287954,1705743042558,-500.0,0.00029899,2]
[312287955,1705743042567,-500.0,0.00029899,2]
[312287956,1705743042577,-498.65358896,0.00029899,2]
[312287957,1705743042585,-377.01508824,0.000299,3]
[312287958,1705743042595,-20778.60299899,0.000299,2]
[312287959,1705743042607,-95726.39913773,0.000299,2]
[312288019,1705743043724,-3814.87,0.0002989,3]
[312288021,1705743043734,-6826.31315596,0.000299,2]
[312288024,1705743043745,-1828.74985506,0.000299,2]
[312288280,1705744006115,-312.52253109,0.00020238,2]
[312288318,1705744240963,-154.73694719,0.00018899,3]
[312288319,1705744240974,-310.65433509,0.000189,2]
[312288320,1705744240983,-263.989752,0.00020201,2]
[312288321,1705744240994,-271.26976504,0.00020237,2]
[312288322,1705744241007,-263.54004309,0.00020237,2]
[312288356,1705744242862,-662.67189843,0.00020237,2]
[312288357,1705744242872,-982.09803372,0.00020238,2]
[312288358,1705744242929,-1101.44103447,0.00020238,2]
[312288359,1705744242939,-300.0,0.00020238,2]
[312288360,1705744243098,-513.60865242,0.00020238,2]
[312288361,1705744243107,-584.98182994,0.00020243,2]
[312288362,1705744243119,-264.98649804,0.00020243,2]
[312288363,1705744243129,-857.83585793,0.00020244,2]
[312288364,1705744243138,-170.066696,0.00020245,2]
[312288365,1705744243147,-170.08034,0.00020637,2]
[312288366,1705744243157,-526.93309094,0.00020708,2]
[312288367,1705744243166,-327.38324213,0.00021,2]
[312288368,1705744243175,-166.666666,0.00021918,2]
[312288369,1705744243184,-1378.20270597,0.00021999,2]
[312288370,1705744243196,-361.048888,0.00021999,2]
[312288373,1705744245906,-327.38324213,0.00021917,2]
[312288374,1705744245917,-25.07631186,0.00021999,2]
[312288375,1705744245927,-425.80364021,0.00022,2]
[312288376,1705744245937,-166.666666,0.00022431,2]
[312288377,1705744245947,-390.9949248,0.00022518,2]
[312288378,1705744245961,-773.122,0.00022518,2]
[312288379,1705744245974,-1161.79548897,0.00022518,2]
[312288382,1705744334418,1096.30211342,0.00016889,5]
[312289360,1705745245089,-786.25167679,0.00020005,2]
[312289361,1705745250087,-411.23002977,0.00020005,2]
[312289362,1705745250108,-849.96832798,0.00020005,2]
[312289363,1705745250129,-650.82308513,0.00020006,2]
[312289378,1705745432819,-154.73694719,0.00018899,3]
[312289379,1705745432829,-118.86305281,0.000189,2]
[312289425,1705745438141,-367.66904991,0.000189,2]
[312289427,1705745438151,-300.0,0.00020006,2]
[312289429,1705745438162,-2083.53906819,0.00020006,2]
[312289431,1705745438171,-678.35754423,0.00020015,2]
[312289433,1705745438180,-170.0939828,0.00020016,2]
[312289435,1705745438190,-1827.63856913,0.00020238,2]
[312289437,1705745438200,-170.093981,0.00020469,2]
[312289439,1705745438209,-1764.32790583,0.00021,2]
[312289441,1705745438218,-327.38324213,0.00021,2]
[312289442,1705745438227,-166.666666,0.00021918,2]
[312289444,1705745438237,-3966.85623058,0.00022,2]
[312289446,1705745438246,-200.0,0.00022322,7]
[312289448,1705745438256,-24900.0,0.00022427,2]
[312289450,1705745438265,-166.666666,0.00022431,2]
[312289452,1705745438274,-1825.35938733,0.00022518,2]
[312289454,1705745438283,-1482.07644451,0.00022518,5]
[312289456,1705745438292,-154.73694719,0.00022518,2]
[312289458,1705745438301,-166.666666,0.00022944,2]
[312289460,1705745438311,-1570.89243892,0.00023,2]
[312289462,1705745438320,-166.666666,0.00023456,2]
[312289464,1705745438330,-486.53210272,0.000239,2]
[312289466,1705745438339,-166.666666,0.00023969,2]
[312289468,1705745438348,-4012.5594856,0.00024,2]
[312289470,1705745438358,-166.666666,0.00024482,2]
[312289472,1705745438367,-280.0,0.00024554,7]
[312289474,1705745438376,-500.0,0.00024657,2]
[312289476,1705745438385,-349.89304428,0.00024657,2]
[312289478,1705745438395,-380.0,0.00024658,2]
[312289480,1705745438404,-977.70118808,0.00024832,2]
[312289482,1705745438414,-1114.14548175,0.00024832,2]
[312289484,1705745438424,-1045.90652664,0.00025,2]
[312289486,1705745438433,-4721.06450288,0.00025,2]
[312289488,1705745438443,-5946.46,0.00025175,3]
[312289490,1705745438452,-50000.0,0.00025185,2]
[312289492,1705745438461,-1197.48170656,0.00025477,2]
[312289494,1705745438470,-193.9845979,0.00025479,2]
[312289496,1705745438483,-199.0990555,0.00026849,2]
[312289498,1705745438493,-391.0,0.00027009,15]
[312289500,1705745438503,-7135.76,0.00027583,3]
[312289502,1705745438512,-470.52459336,0.00027591,2]
[312289504,1705745438520,-187.36939132,0.00027591,2]
[312289506,1705745438530,-874.04705685,0.00027591,2]
[312289508,1705745438539,-272.47884373,0.00027591,2]
[312289510,1705745438549,-155.16885659,0.00027591,2]
[312289512,1705745438558,-193.30440341,0.00027591,2]
[312289514,1705745438567,-155.5855391,0.00027591,2]
[312289516,1705745438578,-187.4707565,0.00027591,2]
[312289518,1705745438587,-157.94908362,0.00027591,2]
[312289520,1705745438597,-1581.76828075,0.00027591,2]
[312289522,1705745438606,-938.96161992,0.00027592,2]
[312289524,1705745438616,-50000.0,0.00027593,5]
[312289526,1705745438626,-50000.0,0.00027637,5]
[312289528,1705745438635,-500.0,0.00027999,2]
[312289530,1705745438644,-460.18141997,0.00027999,2]
[312289532,1705745438654,-437.73977953,0.00027999,2]
[312289534,1705745438664,-500.0,0.00027999,2]
[312289536,1705745438675,-500.0,0.00027999,2]
[312289538,1705745438686,-372.87806139,0.00027999,2]